[Event "Betsys MČR v online bleskovém šachu 2021"]
[Site "Chess.com"]
[Date "2021.04.17"]
[Round "4"]
[White "stripe122"]
[Black "TTCZ"]
[Result "1-0"]
[WhiteElo "1792"]
[BlackElo "1479"]
[TimeControl "180+1"]
[EndTime "9:34:13 PDT"]
[Termination "Uživatel stripe122 zvítězil po vzdání soupeře"]

1. e4 {[%clk 0:02:58.9]} 1... e6 {[%clk 0:03:00.2]} 2. d3 {[%clk 0:02:58.1]}
2... d5 {[%clk 0:03:01.1]} 3. Nd2 {[%clk 0:02:57.7]} 3... dxe4 {[%clk
0:03:01.9]} 4. dxe4 {[%clk 0:02:56.8]} 4... Nc6 {[%clk 0:03:00.1]} 5. Ngf3
{[%clk 0:02:54]} 5... Bb4 {[%clk 0:02:59.7]} 6. c3 {[%clk 0:02:53.2]} 6... Ba5
{[%clk 0:02:59.4]} 7. g3 {[%clk 0:02:52.9]} 7... Nf6 {[%clk 0:02:57.6]} 8. Bg2
{[%clk 0:02:52.5]} 8... h6 {[%clk 0:02:55.3]} 9. O-O {[%clk 0:02:51.5]} 9... O-O
{[%clk 0:02:53.7]} 10. Re1 {[%clk 0:02:51]} 10... a6 {[%clk 0:02:51.5]} 11. Qe2
{[%clk 0:02:41.9]} 11... Bb6 {[%clk 0:02:50.4]} 12. Nf1 {[%clk 0:02:38]} 12...
Ng4 {[%clk 0:02:48.4]} 13. Ne3 {[%clk 0:02:34.7]} 13... Nxe3 {[%clk 0:02:43.1]}
14. Bxe3 {[%clk 0:02:33.5]} 14... Bxe3 {[%clk 0:02:42.4]} 15. Qxe3 {[%clk
0:02:32.3]} 15... Qf6 {[%clk 0:02:38]} 16. e5 {[%clk 0:02:27.5]} 16... Qe7
{[%clk 0:02:36.7]} 17. Nd4 {[%clk 0:02:25.8]} 17... Nxd4 {[%clk 0:02:35.7]} 18.
cxd4 {[%clk 0:02:19]} 18... Rb8 {[%clk 0:02:34.5]} 19. Rac1 {[%clk 0:02:15.6]}
19... c6 {[%clk 0:02:33.1]} 20. f4 {[%clk 0:02:07.5]} 20... Bd7 {[%clk
0:02:32.6]} 21. Bh3 {[%clk 0:02:03.2]} 21... Qb4 {[%clk 0:02:31.1]} 22. b3
{[%clk 0:01:59.3]} 22... Qa3 {[%clk 0:02:29]} 23. Rc2 {[%clk 0:01:55.7]} 23...
Qa5 {[%clk 0:02:25.4]} 24. Rf2 {[%clk 0:01:53.9]} 24... Rbc8 {[%clk 0:02:19.8]}
25. f5 {[%clk 0:01:46.1]} 25... exf5 {[%clk 0:02:14.5]} 26. Bxf5 {[%clk
0:01:45.3]} 26... Bxf5 {[%clk 0:02:13.9]} 27. Rxf5 {[%clk 0:01:45.2]} 27... Qxa2
{[%clk 0:02:09.5]} 28. Ref1 {[%clk 0:01:42.6]} 28... Rcd8 {[%clk 0:02:08.3]} 29.
e6 {[%clk 0:01:36.5]} 29... fxe6 {[%clk 0:01:55.2]} 30. Qxe6+ {[%clk 0:01:34.4]}
30... Kh7 {[%clk 0:01:49.9]} 31. Rxf8 {[%clk 0:01:30.2]} 31... Rxf8 {[%clk
0:01:49.6]} 32. Rxf8 {[%clk 0:01:28.4]} 32... Qxb3 {[%clk 0:01:48.6]} 33. Qxb3
{[%clk 0:01:23.6]} 1-0

[Event "Betsys MČR v online bleskovém šachu 2021"]
[Site "Chess.com"]
[Date "2021.04.17"]
[Round "4"]
[White "lupinek23"]
[Black "JindrichT_CZE"]
[Result "1-0"]
[WhiteElo "1626"]
[BlackElo "2068"]
[TimeControl "180+1"]
[EndTime "9:34:14 PDT"]
[Termination "Uživatel lupinek23 zvítězil matem"]

1. e4 {[%clk 0:03:00.9]} 1... e5 {[%clk 0:02:59.6]} 2. Nf3 {[%clk 0:02:57]} 2...
Nc6 {[%clk 0:02:59.4]} 3. d4 {[%clk 0:02:56.2]} 3... exd4 {[%clk 0:02:59]} 4.
Bc4 {[%clk 0:02:56.1]} 4... Bc5 {[%clk 0:02:58.4]} 5. c3 {[%clk 0:02:52.3]} 5...
Nf6 {[%clk 0:02:53.8]} 6. cxd4 {[%clk 0:02:50.6]} 6... Bb4+ {[%clk 0:02:53.4]}
7. Nc3 {[%clk 0:02:48.7]} 7... d5 {[%clk 0:02:37.8]} 8. exd5 {[%clk 0:02:41]}
8... Nxd5 {[%clk 0:02:36.8]} 9. Bd2 {[%clk 0:02:39.7]} 9... Nce7 {[%clk
0:02:26.6]} 10. O-O {[%clk 0:02:32]} 10... O-O {[%clk 0:02:24.5]} 11. Nxd5
{[%clk 0:02:19.7]} 11... Nxd5 {[%clk 0:02:20.5]} 12. Bxd5 {[%clk 0:02:18.6]}
12... Bxd2 {[%clk 0:02:18.6]} 13. Bxf7+ {[%clk 0:02:10.3]} 13... Rxf7 {[%clk
0:02:17]} 14. Qxd2 {[%clk 0:02:10.6]} 14... Bg4 {[%clk 0:02:10.3]} 15. Ne5
{[%clk 0:02:08.6]} 15... Be6 {[%clk 0:02:01.3]} 16. Nxf7 {[%clk 0:02:07.6]}
16... Bxf7 {[%clk 0:02:01]} 17. Rfe1 {[%clk 0:02:06.4]} 17... Bd5 {[%clk
0:01:59.6]} 18. Re5 {[%clk 0:01:56.3]} 18... c6 {[%clk 0:01:59.4]} 19. Rae1
{[%clk 0:01:51.5]} 19... Qf6 {[%clk 0:01:58.8]} 20. Re8+ {[%clk 0:01:39.3]}
20... Rxe8 {[%clk 0:01:57.9]} 21. Rxe8+ {[%clk 0:01:39.1]} 21... Kf7 {[%clk
0:01:57.7]} 22. Qe3 {[%clk 0:01:35.9]} 22... Bxa2 {[%clk 0:01:37.2]} 23. Rb8
{[%clk 0:01:34.1]} 23... Bd5 {[%clk 0:01:18.1]} 24. Qe8# {[%clk 0:01:32.4]} 1-0

[Event "Betsys MČR v online bleskovém šachu 2021"]
[Site "Chess.com"]
[Date "2021.04.17"]
[Round "4"]
[White "Toman_26"]
[Black "Vojta0007"]
[Result "0-1"]
[WhiteElo "1001"]
[BlackElo "1483"]
[TimeControl "180+1"]
[EndTime "9:34:17 PDT"]
[Termination "Uživatel Vojta0007 zvítězil po vzdání soupeře"]

1. e4 {[%clk 0:03:00.9]} 1... c5 {[%clk 0:02:58.8]} 2. d3 {[%clk 0:02:55.7]}
2... Nc6 {[%clk 0:02:58.2]} 3. Nd2 {[%clk 0:02:55.6]} 3... d6 {[%clk 0:02:57.6]}
4. g3 {[%clk 0:02:55.9]} 4... Nf6 {[%clk 0:02:57.2]} 5. Bg2 {[%clk 0:02:56]}
5... e6 {[%clk 0:02:56.6]} 6. f4 {[%clk 0:02:53.6]} 6... Be7 {[%clk 0:02:55.7]}
7. Ngf3 {[%clk 0:02:51.9]} 7... O-O {[%clk 0:02:54.7]} 8. O-O {[%clk 0:02:52]}
8... b6 {[%clk 0:02:53.1]} 9. Re1 {[%clk 0:02:43.6]} 9... Bb7 {[%clk 0:02:52.1]}
10. Nf1 {[%clk 0:02:43.3]} 10... d5 {[%clk 0:02:49.2]} 11. e5 {[%clk 0:02:42.2]}
11... Nd7 {[%clk 0:02:48.1]} 12. h4 {[%clk 0:02:36]} 12... f6 {[%clk 0:02:45.9]}
13. exf6 {[%clk 0:02:34.4]} 13... Rxf6 {[%clk 0:02:45.1]} 14. Bh3 {[%clk
0:02:30.1]} 14... Nf8 {[%clk 0:02:38.7]} 15. Bxe6+ {[%clk 0:02:26.6]} 15... Rxe6
{[%clk 0:02:36.8]} 16. Rxe6 {[%clk 0:02:23.6]} 16... Nxe6 {[%clk 0:02:36.1]} 17.
f5 {[%clk 0:02:23]} 17... Nc7 {[%clk 0:02:33.4]} 18. Bf4 {[%clk 0:02:13.1]}
18... Bd6 {[%clk 0:02:29.8]} 19. Bg5 {[%clk 0:02:10.5]} 19... Qe8 {[%clk
0:02:23.9]} 20. Qd2 {[%clk 0:02:08.2]} 20... Qd7 {[%clk 0:02:11.8]} 21. f6
{[%clk 0:02:00.9]} 21... g6 {[%clk 0:02:08.4]} 22. Re1 {[%clk 0:01:44.8]} 22...
Re8 {[%clk 0:02:06.7]} 23. Bh6 {[%clk 0:01:27]} 23... Rxe1 {[%clk 0:02:01.2]}
24. Qxe1 {[%clk 0:01:25.2]} 24... Qe6 {[%clk 0:01:54.9]} 25. Qe5 {[%clk
0:01:18.7]} 25... Bxe5 {[%clk 0:01:54.1]} 26. Nxe5 {[%clk 0:01:16.5]} 26... Nxe5
{[%clk 0:01:53.4]} 27. Bf4 {[%clk 0:01:13.1]} 27... Nb5 {[%clk 0:01:50.6]} 28.
Bxe5 {[%clk 0:01:08.8]} 0-1

[Event "Betsys MČR v online bleskovém šachu 2021"]
[Site "Chess.com"]
[Date "2021.04.17"]
[Round "4"]
[White "Dasty78"]
[Black "Smetanka674"]
[Result "1-0"]
[WhiteElo "2018"]
[BlackElo "1757"]
[TimeControl "180+1"]
[EndTime "9:34:22 PDT"]
[Termination "Uživatel Dasty78 zvítězil po vzdání soupeře"]

1. e4 {[%clk 0:02:54.5]} 1... e6 {[%clk 0:02:59.4]} 2. d4 {[%clk 0:02:53.1]}
2... d5 {[%clk 0:02:59.5]} 3. Nc3 {[%clk 0:02:52.7]} 3... dxe4 {[%clk
0:02:59.1]} 4. Nxe4 {[%clk 0:02:52.4]} 4... Nd7 {[%clk 0:02:59.5]} 5. Bd3 {[%clk
0:02:52.5]} 5... Ngf6 {[%clk 0:02:59]} 6. Qe2 {[%clk 0:02:50.7]} 6... Be7 {[%clk
0:02:58.4]} 7. Nf3 {[%clk 0:02:50.1]} 7... b6 {[%clk 0:02:57.1]} 8. Bf4 {[%clk
0:02:47.2]} 8... Bb7 {[%clk 0:02:56.7]} 9. O-O-O {[%clk 0:02:45.3]} 9... Rc8
{[%clk 0:02:49.5]} 10. Ne5 {[%clk 0:02:41.5]} 10... O-O {[%clk 0:02:42]} 11. g4
{[%clk 0:02:32.7]} 11... c5 {[%clk 0:02:37.6]} 12. g5 {[%clk 0:02:28]} 12... Nd5
{[%clk 0:02:36.9]} 13. Be3 {[%clk 0:01:58.6]} 13... Nxe3 {[%clk 0:02:30.8]} 14.
fxe3 {[%clk 0:01:40.7]} 14... cxd4 {[%clk 0:02:29.9]} 15. exd4 {[%clk
0:01:39.6]} 15... Bxg5+ {[%clk 0:02:20.8]} 16. Kb1 {[%clk 0:01:37.6]} 16... Bf4
{[%clk 0:01:58.1]} 17. Rhg1 {[%clk 0:01:20.6]} 17... Nxe5 {[%clk 0:01:51]} 18.
dxe5 {[%clk 0:01:19.2]} 18... Bxe5 {[%clk 0:01:50.6]} 19. Ng5 {[%clk 0:01:13.1]}
19... Qd4 {[%clk 0:01:38.9]} 20. Bxh7+ {[%clk 0:01:06.7]} 20... Kh8 {[%clk
0:01:38.3]} 21. Rxd4 {[%clk 0:01:06.8]} 21... Bxd4 {[%clk 0:01:34.5]} 22. Qh5
{[%clk 0:01:04.2]} 1-0

[Event "Betsys MČR v online bleskovém šachu 2021"]
[Site "Chess.com"]
[Date "2021.04.17"]
[Round "4"]
[White "Z_u_z_i"]
[Black "Listro33"]
[Result "0-1"]
[WhiteElo "1541"]
[BlackElo "1874"]
[TimeControl "180+1"]
[EndTime "9:34:30 PDT"]
[Termination "Uživatel Listro33 zvítězil po vzdání soupeře"]

1. e4 {[%clk 0:03:00.9]} 1... c6 {[%clk 0:02:55.6]} 2. d4 {[%clk 0:02:58]} 2...
d5 {[%clk 0:02:53.9]} 3. Nd2 {[%clk 0:02:55.9]} 3... dxe4 {[%clk 0:02:52.7]} 4.
Nxe4 {[%clk 0:02:55]} 4... Nd7 {[%clk 0:02:53.6]} 5. Nf3 {[%clk 0:02:53.1]} 5...
Ngf6 {[%clk 0:02:52.1]} 6. Ng3 {[%clk 0:02:51.6]} 6... e6 {[%clk 0:02:51.3]} 7.
c4 {[%clk 0:02:50.9]} 7... Be7 {[%clk 0:02:47.9]} 8. Be2 {[%clk 0:02:47.2]} 8...
O-O {[%clk 0:02:46.5]} 9. O-O {[%clk 0:02:46.7]} 9... b6 {[%clk 0:02:46.3]} 10.
b3 {[%clk 0:02:41.2]} 10... Bb7 {[%clk 0:02:45.8]} 11. Bf4 {[%clk 0:02:38.2]}
11... c5 {[%clk 0:02:45.4]} 12. dxc5 {[%clk 0:02:29.2]} 12... Nxc5 {[%clk
0:02:44.7]} 13. Ne5 {[%clk 0:02:16]} 13... Qxd1 {[%clk 0:02:36.5]} 14. Raxd1
{[%clk 0:02:14.6]} 14... Rfd8 {[%clk 0:02:36.7]} 15. Bf3 {[%clk 0:02:03.5]}
15... Bxf3 {[%clk 0:02:33.1]} 16. Nxf3 {[%clk 0:02:01.7]} 16... Nfe4 {[%clk
0:02:28.7]} 17. Nxe4 {[%clk 0:01:59.2]} 17... Nxe4 {[%clk 0:02:29.3]} 18. Ne5
{[%clk 0:01:48.5]} 18... Nc3 {[%clk 0:02:27.2]} 19. Rxd8+ {[%clk 0:01:46.8]}
19... Rxd8 {[%clk 0:02:22.3]} 20. Nc6 {[%clk 0:01:46.6]} 20... Rd7 {[%clk
0:02:20.5]} 21. a3 {[%clk 0:01:37.7]} 21... Ne2+ {[%clk 0:02:18]} 22. Kh1 {[%clk
0:01:34.6]} 22... Nxf4 {[%clk 0:02:17.9]} 23. Ne5 {[%clk 0:01:33.8]} 23... Rd2
{[%clk 0:02:12.1]} 24. Nc6 {[%clk 0:01:30.5]} 24... Bxa3 {[%clk 0:02:07.9]} 25.
Nxa7 {[%clk 0:01:29.4]} 25... Nd3 {[%clk 0:02:05.6]} 26. f3 {[%clk 0:01:26.8]}
26... Nf2+ {[%clk 0:02:03]} 27. Kg1 {[%clk 0:01:22.7]} 27... Bc5 {[%clk
0:02:03.4]} 28. Ra1 {[%clk 0:01:14.8]} 28... Nd3+ {[%clk 0:01:38.3]} 29. Kf1
{[%clk 0:01:13.6]} 29... Rf2+ {[%clk 0:01:35.8]} 30. Kg1 {[%clk 0:01:12.3]}
30... Ra2+ {[%clk 0:01:35.2]} 0-1

[Event "Betsys MČR v online bleskovém šachu 2021"]
[Site "Chess.com"]
[Date "2021.04.17"]
[Round "4"]
[White "pedroholly22"]
[Black "Dan1612"]
[Result "1-0"]
[WhiteElo "2400"]
[BlackElo "1999"]
[TimeControl "180+1"]
[EndTime "9:34:35 PDT"]
[Termination "Uživatel pedroholly22 zvítězil po vzdání soupeře"]

1. e4 {[%clk 0:03:00.9]} 1... c5 {[%clk 0:02:59.1]} 2. Nf3 {[%clk 0:03:00.4]}
2... Nc6 {[%clk 0:02:57.8]} 3. Bb5 {[%clk 0:02:56.8]} 3... g6 {[%clk 0:02:57.3]}
4. O-O {[%clk 0:02:55.4]} 4... Bg7 {[%clk 0:02:56.8]} 5. Re1 {[%clk 0:02:55.8]}
5... a6 {[%clk 0:02:55.3]} 6. Bxc6 {[%clk 0:02:49.8]} 6... dxc6 {[%clk
0:02:55.6]} 7. h3 {[%clk 0:02:42.6]} 7... e5 {[%clk 0:02:49.9]} 8. d3 {[%clk
0:02:42.4]} 8... Ne7 {[%clk 0:02:50.1]} 9. Be3 {[%clk 0:02:40.2]} 9... b6 {[%clk
0:02:47.9]} 10. Qd2 {[%clk 0:02:40.3]} 10... h6 {[%clk 0:02:42.2]} 11. Nc3
{[%clk 0:01:59.7]} 11... Be6 {[%clk 0:02:38.4]} 12. Rab1 {[%clk 0:01:54.6]}
12... Qd6 {[%clk 0:02:09.8]} 13. a3 {[%clk 0:01:51.1]} 13... a5 {[%clk
0:01:55.9]} 14. Na4 {[%clk 0:01:49.2]} 14... Rb8 {[%clk 0:01:55.5]} 15. b4
{[%clk 0:01:47.9]} 15... cxb4 {[%clk 0:01:54.5]} 16. axb4 {[%clk 0:01:46.9]}
16... axb4 {[%clk 0:01:49.3]} 17. Bxb6 {[%clk 0:01:41.5]} 17... O-O {[%clk
0:01:23.2]} 18. Bc5 {[%clk 0:01:25.1]} 18... Qd7 {[%clk 0:01:22.6]} 19. Rxb4
{[%clk 0:01:17.3]} 19... Rxb4 {[%clk 0:01:19.6]} 20. Bxb4 {[%clk 0:01:08]} 20...
Re8 {[%clk 0:01:20.5]} 21. Nc5 {[%clk 0:01:06.2]} 21... Rf8 {[%clk 0:01:21.4]}
22. Nxd7 {[%clk 0:01:04.9]} 1-0

[Event "Betsys MČR v online bleskovém šachu 2021"]
[Site "Chess.com"]
[Date "2021.04.17"]
[Round "4"]
[White "horalek"]
[Black "TarantAnk"]
[Result "0-1"]
[WhiteElo "1346"]
[BlackElo "1731"]
[TimeControl "180+1"]
[EndTime "9:34:39 PDT"]
[Termination "Uživatel TarantAnk zvítězil matem"]

1. e4 {[%clk 0:02:58.7]} 1... c5 {[%clk 0:02:59.5]} 2. d4 {[%clk 0:02:57.5]}
2... cxd4 {[%clk 0:02:58.4]} 3. c3 {[%clk 0:02:56.9]} 3... dxc3 {[%clk
0:02:58.5]} 4. Nxc3 {[%clk 0:02:56.5]} 4... Nc6 {[%clk 0:02:59]} 5. Nf3 {[%clk
0:02:55.8]} 5... d6 {[%clk 0:02:59.5]} 6. Bc4 {[%clk 0:02:54.8]} 6... Nf6 {[%clk
0:02:59.6]} 7. O-O {[%clk 0:02:53.8]} 7... g6 {[%clk 0:02:59.4]} 8. Qe2 {[%clk
0:02:53]} 8... Bg7 {[%clk 0:02:59]} 9. Bg5 {[%clk 0:02:51.5]} 9... O-O {[%clk
0:02:58]} 10. Rfd1 {[%clk 0:02:51.2]} 10... Nd7 {[%clk 0:02:57.8]} 11. Rac1
{[%clk 0:02:46.8]} 11... h6 {[%clk 0:02:54.8]} 12. Bh4 {[%clk 0:02:45.3]} 12...
g5 {[%clk 0:02:54.7]} 13. Bg3 {[%clk 0:02:44.7]} 13... Nde5 {[%clk 0:02:54.7]}
14. a3 {[%clk 0:02:38.2]} 14... Bg4 {[%clk 0:02:53.8]} 15. h3 {[%clk 0:02:36.4]}
15... Bxf3 {[%clk 0:02:52.5]} 16. gxf3 {[%clk 0:02:34.7]} 16... Nxc4 {[%clk
0:02:50.3]} 17. Qxc4 {[%clk 0:02:30.8]} 17... Ne5 {[%clk 0:02:51.2]} 18. Bxe5
{[%clk 0:02:26.5]} 18... Bxe5 {[%clk 0:02:48.5]} 19. Qe2 {[%clk 0:02:19.2]}
19... Qd7 {[%clk 0:02:45.9]} 20. b4 {[%clk 0:02:16]} 20... Qxh3 {[%clk
0:02:44.2]} 21. f4 {[%clk 0:01:55.1]} 21... Bxf4 {[%clk 0:02:42.5]} 22. Qf3
{[%clk 0:01:47.5]} 22... Qxf3 {[%clk 0:02:39.7]} 23. Kf1 {[%clk 0:01:38.4]}
23... Bxc1 {[%clk 0:02:34.7]} 24. Rxc1 {[%clk 0:01:35]} 24... Rac8 {[%clk
0:02:34.7]} 25. Ne2 {[%clk 0:01:31.2]} 25... Rxc1+ {[%clk 0:02:31.8]} 26. Nxc1
{[%clk 0:01:30.1]} 26... Qd1+ {[%clk 0:02:31.7]} 27. Kg2 {[%clk 0:00:36.5]}
27... Qxc1 {[%clk 0:02:32.6]} 28. Kg3 {[%clk 0:00:35.6]} 28... Qf4+ {[%clk
0:02:26.3]} 29. Kg2 {[%clk 0:00:34.1]} 29... Rc8 {[%clk 0:02:27.2]} 30. e5
{[%clk 0:00:31.3]} 30... Rc2 {[%clk 0:02:26.2]} 31. exd6 {[%clk 0:00:28.9]}
31... Qxf2+ {[%clk 0:02:17.6]} 32. Kh3 {[%clk 0:00:22.6]} 32... Qg2# {[%clk
0:02:17.8]} 0-1

[Event "Betsys MČR v online bleskovém šachu 2021"]
[Site "Chess.com"]
[Date "2021.04.17"]
[Round "4"]
[White "KdybyNecoTakNic"]
[Black "BetsysBetting"]
[Result "1-0"]
[WhiteElo "2309"]
[BlackElo "1950"]
[TimeControl "180+1"]
[EndTime "9:34:40 PDT"]
[Termination "Uživatel KdybyNecoTakNic zvítězil na čas"]

1. Nf3 {[%clk 0:03:00.9]} 1... d6 {[%clk 0:02:57.2]} 2. g3 {[%clk 0:02:58.4]}
2... e5 {[%clk 0:02:55.5]} 3. d3 {[%clk 0:02:57.1]} 3... f5 {[%clk 0:02:50.6]}
4. Bg2 {[%clk 0:02:51.4]} 4... Nf6 {[%clk 0:02:50.3]} 5. O-O {[%clk 0:02:50.7]}
5... Be7 {[%clk 0:02:50.2]} 6. e4 {[%clk 0:02:44]} 6... O-O {[%clk 0:02:44]} 7.
exf5 {[%clk 0:02:42.3]} 7... Bxf5 {[%clk 0:02:43.2]} 8. d4 {[%clk 0:02:37.9]}
8... Nc6 {[%clk 0:02:07.8]} 9. Nc3 {[%clk 0:02:27.5]} 9... Bg4 {[%clk
0:00:52.1]} 10. h3 {[%clk 0:02:27.2]} 10... Bh5 {[%clk 0:00:43.4]} 11. g4 {[%clk
0:02:26.9]} 11... Nxg4 {[%clk 0:00:39.4]} 12. hxg4 {[%clk 0:02:26.7]} 12... Bxg4
{[%clk 0:00:39.7]} 13. dxe5 {[%clk 0:02:23.4]} 13... Kh8 {[%clk 0:00:12.8]} 14.
Qd5 {[%clk 0:02:16.4]} 14... Nb4 {[%clk 0:00:04.4]} 15. Qe4 {[%clk 0:02:12.9]}
15... Bf5 {[%clk 0:00:03.9]} 16. Qxb4 {[%clk 0:02:12.5]} 16... c5 {[%clk
0:00:02.8]} 17. Qc4 {[%clk 0:02:05.5]} 17... d5 {[%clk 0:00:01.3]} 18. Qe2
{[%clk 0:02:05.6]} 1-0

[Event "Betsys MČR v online bleskovém šachu 2021"]
[Site "Chess.com"]
[Date "2021.04.17"]
[Round "4"]
[White "petr812"]
[Black "8_olda_8"]
[Result "1-0"]
[WhiteElo "2115"]
[BlackElo "1796"]
[TimeControl "180+1"]
[EndTime "9:34:40 PDT"]
[Termination "Uživatel petr812 zvítězil po vzdání soupeře"]

1. e4 {[%clk 0:03:00.9]} 1... e6 {[%clk 0:02:46.2]} 2. d4 {[%clk 0:02:58.8]}
2... c5 {[%clk 0:02:46.4]} 3. Nf3 {[%clk 0:02:56]} 3... cxd4 {[%clk 0:02:46.3]}
4. Nxd4 {[%clk 0:02:55.8]} 4... a6 {[%clk 0:02:46.7]} 5. c4 {[%clk 0:02:55.6]}
5... Qc7 {[%clk 0:02:46.5]} 6. Nc3 {[%clk 0:02:54.3]} 6... Nf6 {[%clk
0:02:46.3]} 7. Be3 {[%clk 0:02:50.8]} 7... Nc6 {[%clk 0:02:39.8]} 8. Be2 {[%clk
0:02:49.2]} 8... Ne5 {[%clk 0:02:27.8]} 9. Rc1 {[%clk 0:02:41.2]} 9... Bc5
{[%clk 0:02:21.3]} 10. O-O {[%clk 0:02:34.6]} 10... O-O {[%clk 0:02:16.5]} 11.
a3 {[%clk 0:02:27.2]} 11... Ba7 {[%clk 0:02:04.8]} 12. b4 {[%clk 0:02:04.8]}
12... Nxc4 {[%clk 0:01:55.3]} 13. Bxc4 {[%clk 0:01:56.2]} 13... Qxc4 {[%clk
0:01:54.7]} 14. Nd5 {[%clk 0:01:47.6]} 14... Qa2 {[%clk 0:01:45.6]} 15. Nxf6+
{[%clk 0:01:42.7]} 15... gxf6 {[%clk 0:01:45.2]} 16. Bh6 {[%clk 0:01:40.7]}
16... f5 {[%clk 0:01:18.1]} 17. exf5 {[%clk 0:01:28.8]} 17... exf5 {[%clk
0:01:17.3]} 18. Nxf5 {[%clk 0:01:27.6]} 18... Qe6 {[%clk 0:00:59.1]} 19. Qg4+
{[%clk 0:01:24.6]} 1-0

[Event "Betsys MČR v online bleskovém šachu 2021"]
[Site "Chess.com"]
[Date "2021.04.17"]
[Round "4"]
[White "JindrichT_JR_CZE"]
[Black "FrantisekP"]
[Result "0-1"]
[WhiteElo "1000"]
[BlackElo "1628"]
[TimeControl "180+1"]
[EndTime "9:34:41 PDT"]
[Termination "Uživatel FrantisekP zvítězil po vzdání soupeře"]

1. e4 {[%clk 0:03:00.9]} 1... c5 {[%clk 0:02:59.9]} 2. c4 {[%clk 0:02:59.7]}
2... Nc6 {[%clk 0:03:00.1]} 3. g3 {[%clk 0:03:00.1]} 3... g6 {[%clk 0:02:59.4]}
4. Bg2 {[%clk 0:03:00.2]} 4... Bg7 {[%clk 0:03:00]} 5. Nc3 {[%clk 0:02:59.1]}
5... d6 {[%clk 0:03:00.2]} 6. d3 {[%clk 0:02:58.4]} 6... Nf6 {[%clk 0:02:59.1]}
7. Be3 {[%clk 0:02:58]} 7... O-O {[%clk 0:02:58.2]} 8. Nge2 {[%clk 0:02:56.9]}
8... a6 {[%clk 0:02:57.4]} 9. O-O {[%clk 0:02:56.2]} 9... e5 {[%clk 0:02:55.7]}
10. b3 {[%clk 0:02:54.9]} 10... Bd7 {[%clk 0:02:45.7]} 11. Nd5 {[%clk
0:02:53.8]} 11... Nxd5 {[%clk 0:02:42.3]} 12. exd5 {[%clk 0:02:52.8]} 12... Nd4
{[%clk 0:02:42.2]} 13. Bxd4 {[%clk 0:02:51.1]} 13... exd4 {[%clk 0:02:35.5]} 14.
Re1 {[%clk 0:02:48]} 14... Re8 {[%clk 0:02:35.7]} 15. Nf4 {[%clk 0:02:45.9]}
15... Rxe1+ {[%clk 0:02:31.5]} 16. Qxe1 {[%clk 0:02:45.2]} 16... Qe8 {[%clk
0:02:29.4]} 17. Qxe8+ {[%clk 0:02:43.7]} 17... Rxe8 {[%clk 0:02:30.3]} 18. Kf1
{[%clk 0:02:43.1]} 18... Bh6 {[%clk 0:02:22.2]} 19. Re1 {[%clk 0:02:40.5]} 19...
Rxe1+ {[%clk 0:02:12.9]} 20. Kxe1 {[%clk 0:02:40.1]} 20... Bxf4 {[%clk
0:02:04.6]} 21. gxf4 {[%clk 0:02:34.4]} 21... Bf5 {[%clk 0:02:04.4]} 22. Be4
{[%clk 0:02:32.5]} 22... Bh3 {[%clk 0:02:02.3]} 23. a3 {[%clk 0:02:21.8]} 23...
a5 {[%clk 0:01:53.8]} 24. a4 {[%clk 0:02:18.7]} 24... b6 {[%clk 0:01:53]} 25.
Ke2 {[%clk 0:02:16]} 25... Kg7 {[%clk 0:01:41.4]} 26. Kf3 {[%clk 0:02:02.9]}
26... f5 {[%clk 0:01:37.4]} 27. Kg3 {[%clk 0:01:58]} 27... fxe4 {[%clk
0:01:36.6]} 28. dxe4 {[%clk 0:01:51.7]} 28... Bf1 {[%clk 0:01:32.1]} 29. e5
{[%clk 0:01:38.3]} 29... d3 {[%clk 0:01:21.4]} 30. exd6 {[%clk 0:01:36.4]} 30...
Kf7 {[%clk 0:01:20.1]} 31. Kf3 {[%clk 0:01:26.9]} 31... d2 {[%clk 0:01:18.8]}
32. d7 {[%clk 0:01:24]} 32... d1=Q+ {[%clk 0:01:18.1]} 0-1

[Event "Betsys MČR v online bleskovém šachu 2021"]
[Site "Chess.com"]
[Date "2021.04.17"]
[Round "4"]
[White "VildaSt"]
[Black "starypomalymuz"]
[Result "0-1"]
[WhiteElo "1319"]
[BlackElo "1772"]
[TimeControl "180+1"]
[EndTime "9:34:41 PDT"]
[Termination "Uživatel starypomalymuz zvítězil po vzdání soupeře"]

1. e4 {[%clk 0:03:00.9]} 1... e6 {[%clk 0:02:57.1]} 2. d4 {[%clk 0:03:00.1]}
2... a6 {[%clk 0:02:56.4]} 3. Nf3 {[%clk 0:02:59.5]} 3... b5 {[%clk 0:02:55.2]}
4. c4 {[%clk 0:02:59.6]} 4... bxc4 {[%clk 0:02:54.6]} 5. Bxc4 {[%clk 0:02:59.3]}
5... Bb7 {[%clk 0:02:55.5]} 6. Nc3 {[%clk 0:02:58.3]} 6... Nf6 {[%clk
0:02:52.3]} 7. O-O {[%clk 0:02:57.1]} 7... Be7 {[%clk 0:02:46.6]} 8. Bd3 {[%clk
0:02:55.2]} 8... c5 {[%clk 0:02:43.7]} 9. dxc5 {[%clk 0:02:50.6]} 9... Bxc5
{[%clk 0:02:42.8]} 10. Qb3 {[%clk 0:02:50.3]} 10... Bc6 {[%clk 0:02:33.7]} 11.
Re1 {[%clk 0:02:41.9]} 11... O-O {[%clk 0:02:32.4]} 12. Be3 {[%clk 0:02:41.8]}
12... Bxe3 {[%clk 0:02:29.1]} 13. Rxe3 {[%clk 0:02:41.6]} 13... d5 {[%clk
0:02:23.6]} 14. exd5 {[%clk 0:02:40.1]} 14... Nxd5 {[%clk 0:02:18.5]} 15. Rd1
{[%clk 0:02:37.6]} 15... Qc7 {[%clk 0:02:11.2]} 16. Ree1 {[%clk 0:02:14.3]}
16... Nd7 {[%clk 0:02:06.2]} 17. Nxd5 {[%clk 0:02:13.1]} 17... Bxd5 {[%clk
0:02:03.3]} 18. Qc3 {[%clk 0:02:03.9]} 18... Qxc3 {[%clk 0:02:00]} 19. bxc3
{[%clk 0:02:03.7]} 19... Rfc8 {[%clk 0:01:56.3]} 20. Rc1 {[%clk 0:01:47.5]}
20... Nc5 {[%clk 0:01:51.2]} 21. c4 {[%clk 0:01:39.3]} 21... Nxd3 {[%clk
0:01:46.6]} 22. cxd5 {[%clk 0:01:36.2]} 22... Rxc1 {[%clk 0:01:36.8]} 23. Rxc1
{[%clk 0:01:36]} 23... Nxc1 {[%clk 0:01:36.7]} 24. dxe6 {[%clk 0:01:36]} 24...
fxe6 {[%clk 0:01:36]} 25. Nd4 {[%clk 0:01:35.2]} 25... e5 {[%clk 0:01:33]} 26.
Nc6 {[%clk 0:01:31.9]} 26... Nxa2 {[%clk 0:01:25.8]} 27. g3 {[%clk 0:01:30.5]}
27... a5 {[%clk 0:01:22.9]} 28. Nxe5 {[%clk 0:01:29.8]} 28... Nc3 {[%clk
0:01:21.3]} 29. Kg2 {[%clk 0:01:27.1]} 29... a4 {[%clk 0:01:21.3]} 30. Nc4
{[%clk 0:01:26.5]} 30... a3 {[%clk 0:01:20.6]} 31. Nb6 {[%clk 0:01:26.6]} 31...
Ra6 {[%clk 0:01:17.2]} 32. Nc4 {[%clk 0:01:26.1]} 32... a2 {[%clk 0:01:16.1]}
0-1